bitfinex-derivatives/quotes_ETHF0:USTF0_20250314
["timestamp","ask_amount","ask_price","bid_price","bid_amount"]
[1741973932364,3.8147,1932.4,1931.9,1.371]
[1741973932365,6.8068,1932.3,1931.9,1.371]
[1741973932558,1.3147,1932.2,1931.9,1.371]
[1741973932758,0.6682,1932.1,1931.9,1.371]
[1741973932970,1.3147,1932.0,1931.9,1.371]
[1741973933358,6.8068,1932.3,1931.9,1.371]
[1741973933553,1.4218,1932.2,1931.9,1.371]
[1741973934160,1.4218,1932.2,1931.9,4.5788]
[1741973934561,1.4218,1932.2,1932.0,1.3754]
[1741973938960,3.2078,1932.4,1932.0,1.3754]
[1741973939162,4.572,1932.4,1932.0,1.3754]
[1741973939367,1.3642,1932.4,1932.0,1.3754]
[1741973939563,1.3642,1932.3,1932.0,1.3754]
[1741973942269,3.2078,1932.2,1931.8,0.70035936]
[1741973942569,2.7604,1932.1,1931.9,1.4071]
[1741973942876,1.3974,1932.1,1931.9,1.4071]
[1741973943172,0.7028,1932.1,1931.9,1.4071]
[1741973943476,2.0658,1932.1,1931.9,1.4071]
[1741973943876,1.363,1932.0,1931.9,1.4071]
[1741973946070,0.6946,1932.3,1931.9,4.6149]
[1741973946277,3.2078,1932.5,1931.9,5.2799]
[1741973946577,2.0887,1932.6,1932.2,3.2078]
[1741973946873,2.0887,1932.6,1932.3,2.0326]
[1741973947179,1.4088,1932.5,1932.4,1.3762]
[1741973947577,0.6799,1932.6,1932.4,1.3762]
[1741973948375,1.9956,1932.6,1932.4,1.3762]
[1741973948578,0.7216,1932.7,1932.4,1.3762]
[1741973948780,2.0373,1932.7,1932.4,1.3762]
[1741973949178,0.7216,1932.7,1932.4,1.3762]
[1741973949377,2.0373,1932.7,1932.4,1.3762]
[1741973949772,1.3157,1932.6,1932.4,1.3762]
[1741973950282,1.3157,1932.6,1931.8,0.00775936]
[1741973950283,3.599,1932.5,1931.8,3.21555936]
[1741973950581,3.2078,1932.0,1931.8,0.00775936]
[1741973950782,2.6957,1931.9,1931.8,0.00775936]
[1741973954980,0.661,1931.9,1931.8,0.00775936]
[1741973956785,2.059,1931.9,1931.8,0.00775936]
[1741973958276,2.7261,1931.9,1931.8,0.00775936]
[1741973960181,3.21555936,1932.1,1931.8,0.00775936]
[1741973960785,1.3276,1932.0,1931.8,0.00775936]
[1741973961081,1.3276,1932.0,1931.8,1.44415936]
[1741973964586,0.00775936,1932.1,1931.8,1.44415936]
[1741973964785,2.0346,1932.9,1931.9,4.6178]
[1741973965089,0.7209,1932.8,1932.3,3.2078]
[1741973965285,2.0614,1932.8,1932.4,1.3728]
[1741973965592,0.6941,1932.9,1932.5,3.2078]
[1741973965790,3.2078,1933.0,1932.5,3.2078]
[1741973965791,4.5483,1933.0,1932.6,1.4527]
[1741973965988,1.3405,1932.8,1932.6,1.4527]
[1741973966394,0.00775936,1932.9,1932.6,1.4527]
[1741973966791,0.00775936,1932.9,1932.7,3.2078]
[1741973966991,0.00775936,1932.9,1932.8,1.3873]
[1741973971890,0.00775936,1932.9,1932.7,3.2078]
[1741973972093,3.21555936,1932.9,1932.6,1.398]
[1741973972320,1.4084,1932.8,1932.6,1.398]
[1741973972561,0.00775936,1932.9,1932.6,1.398]
[1741973973715,0.69945936,1932.9,1932.6,1.398]
[1741973973897,1.3205,1932.8,1932.6,1.398]
[1741973975092,0.69945936,1932.9,1932.6,1.398]
[1741973975489,0.00775936,1932.9,1932.6,1.398]
[1741973975694,0.00775936,1932.9,1932.6,4.6058]
[1741973976096,0.00775936,1932.9,1932.7,1.4048]
[1741973979002,0.00775936,1932.9,1932.8,3.2078]
[1741973979703,0.00775936,1932.9,1932.7,1.4048]
[1741973982192,0.00775936,1932.9,1932.8,3.2078]
[1741973982392,0.00775936,1932.9,1932.8,3.8921]
[1741973983405,0.00775936,1932.9,1932.8,4.556]
[1741973983800,0.00775936,1932.9,1932.8,10.653]
[1741973984104,2.0306,1933.5,1932.8,10.653]
[1741973984304,2.0306,1933.5,1933.2,3.2078]
[1741973984505,2.0306,1933.5,1933.3,1.3524]
[1741973985105,1.4261,1933.4,1933.3,1.3524]
[1741973985703,0.6766,1933.5,1933.3,1.3524]
[1741973985905,2.1027,1933.5,1933.3,1.3524]
[1741973987208,2.1027,1933.5,1933.3,2.0072]
[1741973987400,0.00517288,1933.6,1933.3,2.0072]
[1741973987602,0.00517288,1933.6,1933.4,1.4122]
[1741973989905,0.00517288,1933.6,1933.4,4.62]
[1741973990412,0.00517288,1933.6,1933.5,1.4111]
[1741973994607,0.00517288,1933.6,1933.5,7.4091]
[1741973995110,0.6721,1934.1,1933.5,9.9091]
[1741973995320,2.0125,1934.1,1933.8,3.2078]
[1741973995516,2.0125,1934.1,1933.9,2.0797]
[1741973995704,2.0125,1934.1,1934.0,1.4021]
[1741973996813,5.2203,1934.1,1933.5,9.594]
[1741973997012,1.3404,1934.0,1933.8,1.4021]
[1741973997920,4.2681,1934.1,1933.8,1.4021]
[1741973998216,0.6721,1934.1,1933.9,0.6771]
[1741973998417,2.1244,1934.1,1934.0,1.3183]
[1741974001322,2.1244,1934.1,1933.7,3.2078]
[1741974001521,1.4117,1934.0,1933.8,1.4471]
[1741974002724,0.6721,1934.1,1933.8,1.4471]
[1741974002923,1.4117,1934.0,1933.8,1.4471]
[1741974003525,0.6721,1934.1,1933.8,1.4471]
[1741974003728,0.6721,1934.1,1933.8,2.128]
[1741974003927,2.1049,1934.1,1933.8,2.128]
[1741974004124,2.1049,1934.1,1933.9,1.35]
[1741974004325,1.4328,1934.1,1934.0,0.6612]
[1741974005224,0.6727,1934.2,1934.0,0.6612]
[1741974005424,2.1055,1934.2,1934.1,1.35]
[1741974007933,2.1055,1934.2,1933.9,1.3694]
[1741974008136,2.0491,1934.1,1933.9,1.3694]
[1741974008433,0.698,1934.1,1933.9,1.3694]
[1741974008630,1.3511,1934.0,1933.9,1.3694]
[1741974011641,1.3511,1934.0,1933.7,3.2078]
[1741974011842,1.3511,1934.0,1933.8,1.4493]
[1741974012640,3.9058,1934.1,1933.8,1.4493]
[1741974012841,5.2224,1934.1,1933.9,0.7106]
[1741974013036,5.2224,1934.1,1934.0,1.3499]
[1741974013243,3.2078,1934.6,1934.0,5.2573]
[1741974013445,1.9961,1934.6,1934.3,3.2078]
[1741974013634,0.7256,1934.8,1934.5,3.2078]
[1741974013837,2.0422,1934.8,1934.6,1.3499]
[1741974014343,1.3166,1934.7,1934.6,1.3499]
[1741974014534,0.7256,1934.8,1934.6,1.3499]
[1741974016245,1.3486,1935.0,1934.6,1.3499]
[1741974016449,2.0698,1935.0,1934.6,1.3499]
[1741974016943,1.3486,1934.9,1934.6,1.3499]
[1741974019442,2.0149,1934.9,1934.6,1.3499]
[1741974019842,1.3348,1934.8,1934.6,1.3499]
[1741974020749,0.7212,1935.0,1934.6,1.3499]
[1741974021050,1.3348,1934.9,1934.6,1.3499]
[1741974024847,4.5426,1934.9,1934.6,1.3499]
[1741974025250,1.4485,1934.8,1934.6,1.3499]
[1741974026057,3.2078,1934.7,1934.4,6.6894]
[1741974026251,2.8118,1934.6,1934.3,3.2078]
[1741974026445,2.8118,1934.6,1934.1,0.00775936]
[1741974026446,4.6563,1934.5,1934.1,0.00775936]
[1741974026747,1.4485,1934.4,1934.1,0.00775936]
[1741974027052,3.2078,1934.3,1934.1,0.00775936]
[1741974027345,5.123538,1934.2,1933.7,1.3207]
[1741974027551,3.2078,1934.0,1933.9,1.3207]
[1741974027946,5.7382,1934.2,1933.9,1.3207]
[1741974028348,1.3899,1934.1,1933.9,1.32845936]
[1741974029450,2.0952,1934.1,1933.9,1.32845936]
[1741974030145,4.29745936,1934.2,1933.9,4.53625936]
[1741974030146,0.70545936,1934.2,1933.9,4.53625936]
[1741974030347,0.00775936,1934.2,1933.9,4.53625936]
[1741974030549,0.00775936,1934.2,1934.0,1.3629]
[1741974030848,3.2078,1934.5,1934.1,6.7998]
[1741974030849,3.9206,1934.5,1934.1,6.7998]
[1741974031051,3.2078,1934.5,1934.2,2.7846]
[1741974031357,3.2078,1934.5,1934.3,1.4167]
[1741974031559,2.0756,1934.7,1934.3,4.6245]
[1741974031759,2.7809,1934.7,1934.3,4.6245]
[1741974032059,1.3628,1934.6,1934.4,1.4167]
[1741974032449,4.5706,1934.6,1934.4,1.4167]
[1741974032755,4.5706,1934.6,1934.2,0.7092]
[1741974033057,1.3628,1934.5,1934.3,1.4167]
[1741974035853,0.7128,1934.7,1934.3,1.4167]
[1741974036057,0.7128,1934.7,1934.3,4.6245]
[1741974036357,1.3191,1934.6,1934.3,4.6245]
[1741974036559,0.7128,1934.7,1934.4,1.3707]
[1741974036749,1.413,1934.6,1934.4,1.3707]
[1741974036947,1.413,1934.6,1934.4,2.0356]
[1741974037150,1.413,1934.6,1934.4,1.3707]
[1741974037351,1.413,1934.6,1934.5,1.3155]
[1741974037552,1.49609092,1934.6,1934.0,0.6649]
[1741974037751,3.2078,1934.4,1934.0,0.6649]
[1741974038059,2.8063,1934.3,1934.1,1.3155]
[1741974038260,3.2078,1934.6,1934.1,4.5233]
[1741974038561,3.591,1934.8,1934.1,4.5233]
[1741974038562,6.7988,1934.8,1934.2,1.3155]
[1741974038857,1.413,1934.7,1934.2,1.3155]
[1741974039451,1.413,1934.7,1934.3,3.2078]
[1741974039657,1.413,1934.7,1934.4,1.9873]
[1741974039958,1.413,1934.7,1934.5,1.3616]
[1741974040457,2.0972,1934.7,1934.5,1.3616]
[1741974041358,1.4444,1934.6,1934.5,1.3616]
[1741974046959,4.6522,1934.6,1934.1,5.998]
[1741974047256,4.6522,1934.6,1934.3,1.4131]
[1741974047477,3.2078,1934.4,1934.3,1.4131]
[1741974047959,3.2078,1934.4,1934.1,5.998]
[1741974048162,2.7296,1934.3,1933.9,0.00775936]
[1741974048357,4.518,1934.2,1933.9,1.42085936]
[1741974048662,1.3102,1934.1,1933.9,1.42085936]
[1741974050662,3.2078,1934.0,1933.9,0.00775936]
[1741974051059,4.67849055,1934.0,1933.9,0.00775936]
[1741974051563,4.5955,1934.0,1933.9,0.00775936]
[1741974056969,4.5955,1934.0,1933.6,1.4523]
[1741974057171,2.8306,1933.9,1933.6,1.4523]
[1741974057469,1.4399,1933.8,1933.6,1.4523]
[1741974057966,8.2387,1933.8,1933.5,0.00775936]
[1741974058369,3.2078,1933.6,1933.5,0.00775936]
[1741974061076,3.591,1933.8,1933.5,0.00775936]
[1741974061276,4.9521,1933.8,1933.5,0.00775936]
[1741974061569,1.3611,1933.7,1933.5,1.39525936]
[1741974063179,1.39845936,1933.9,1933.6,0.6825]
[1741974063374,0.00775936,1933.9,1933.7,2.042]
[1741974063576,0.00775936,1933.9,1933.8,1.3875]
[1741974063779,1.36885936,1933.9,1933.8,1.3875]
[1741974064584,1.36885936,1933.9,1933.5,0.00775936]
[1741974064775,0.6691,1933.8,1933.5,2.04605936]
[1741974064970,0.6691,1933.8,1933.6,1.3838]
[1741974065176,1.3081,1933.7,1933.6,1.3838]
[1741974065976,1.3081,1933.7,1933.5,0.00775936]
[1741974069585,4.5822,1933.8,1933.5,0.00775936]
[1741974069774,1.4516,1933.7,1933.5,0.00775936]
[1741974071288,3.2078,1933.8,1933.5,0.00775936]
[1741974071997,0.00775936,1933.9,1933.5,0.00775936]
[1741974072199,0.00775936,1933.9,1933.5,3.21555936]
[1741974072393,0.00775936,1933.9,1933.6,2.0885]
[1741974072585,1.45955936,1933.9,1933.7,1.4298]
[1741974072790,0.00775936,1933.9,1933.7,2.1468]
[1741974072993,1.45955936,1933.9,1933.8,1.4298]
[1741974075094,1.45955936,1933.9,1933.6,0.6587]
[1741974075395,0.00775936,1933.9,1933.7,1.34]
[1741974076394,1.34455936,1933.9,1933.7,1.34]
[1741974081096,0.00775936,1933.9,1933.7,1.34]
[1741974081400,0.00775936,1933.9,1933.8,0.7062]
[1741974084303,0.00775936,1933.9,1933.7,1.34]
[1741974084499,1.33915936,1933.9,1933.7,1.34]
[1741974084706,0.00775936,1933.9,1933.7,1.34]
[1741974085201,0.00775936,1933.9,1933.8,0.6898]
[1741974094804,2.0706,1934.5,1933.8,6.7788]
[1741974095006,2.0706,1934.5,1934.1,3.2078]
[1741974095212,2.0706,1934.5,1934.2,1.3346]
[1741974095410,2.0706,1934.5,1934.3,1.3105]
[1741974096408,0.6915,1934.5,1934.3,1.3105]
[1741974096608,3.2078,1934.9,1934.3,4.5183]
[1741974096801,4.5869,1934.9,1934.4,1.3105]
[1741974097008,2.059,1934.8,1934.4,1.31825936]
[1741974098109,2.059,1934.8,1934.4,4.90625936]
[1741974098507,0.6799,1934.8,1934.5,1.3686]
[1741974098706,0.6799,1934.8,1934.6,3.9208]
[1741974098906,0.6799,1934.8,1934.7,1.3686]
[1741974099297,1.3771,1935.0,1934.7,1.3686]
[1741974099498,2.0523,1935.0,1934.7,1.3686]
[1741974099904,1.3771,1934.9,1934.7,1.3686]
[1741974107410,4.5849,1934.9,1934.7,1.3686]
[1741974107913,1.4373,1934.8,1934.7,1.3686]
[1741974110814,3.2078,1934.9,1934.7,1.3686]
[1741974111014,4.6041,1934.9,1934.7,1.3686]
[1741974111915,1.3963,1934.9,1934.7,1.3686]
[1741974112116,1.3963,1934.9,1934.7,2.0445]
[1741974112517,1.3963,1934.9,1934.8,1.3455]
[1741974116414,4.6041,1934.9,1934.8,1.3455]
[1741974119314,4.6041,1934.9,1934.6,0.713]
[1741974119519,1.3096,1934.8,1934.4,3.21555936]
[1741974119719,0.7069,1934.7,1934.5,1.4276]
[1741974120020,1.3096,1934.6,1934.5,1.4276]
[1741974120218,2.0244,1934.6,1934.5,1.4276]
[1741974125225,0.7148,1934.6,1934.5,1.4276]
[1741974125428,0.7148,1934.6,1934.5,2.1048]
[1741974125619,4.5334,1934.7,1934.5,2.1048]
[1741974125815,4.5334,1934.7,1934.6,1.3215]
[1741974126015,3.2078,1934.7,1934.6,1.3215]
[1741974126223,3.2078,1934.9,1934.6,1.3215]
[1741974126423,1.3256,1934.8,1934.6,1.3215]
[1741974127019,2.0488,1934.8,1934.6,1.3215]
[1741974127324,3.2078,1934.7,1934.4,0.00775936]
[1741974127626,2.0269,1934.7,1934.4,1.32925936]
[1741974127921,1.3256,1934.6,1934.4,1.32925936]
[1741974129422,3.2078,1934.5,1934.4,0.00775936]
[1741974129923,4.6536,1934.5,1934.4,0.00775936]
[1741974134922,5.3143,1934.5,1934.4,0.00775936]
[1741974135130,5.39726685,1934.5,1934.2,1.4444]
[1741974135430,1.3376,1934.4,1934.2,1.4444]
[1741974135728,3.2078,1934.3,1933.9,0.7056]
[1741974135926,3.2078,1934.0,1933.6,0.6733]
[1741974136129,1.3376,1933.9,1933.7,1.3838]
[1741974136321,2.0601,1933.9,1933.7,1.3838]
[1741974136729,1.3376,1933.8,1933.7,1.3838]
[1741974137630,2.0565,1933.8,1933.7,1.3838]
[1741974138531,1.3376,1933.8,1933.7,1.3838]
[1741974138826,4.5454,1933.8,1933.6,0.00775936]
[1741974139024,0.7235,1933.7,1933.6,0.00775936]
[1741974139224,2.1293,1933.7,1933.6,0.00775936]
[1741974141423,1.4058,1933.7,1933.6,0.00775936]
[1741974144228,1.4058,1933.7,1933.1,3.584]
[1741974144229,4.9898,1933.7,1933.1,3.2078]
[1741974144427,3.2078,1933.6,1933.2,0.6577]
[1741974144624,0.6757,1933.5,1933.2,2.1063]
[1741974144821,2.716,1933.5,1933.3,1.4486]
[1741974145024,3.584,1933.4,1933.1,3.9014]
[1741974145229,8.1781,1933.4,1933.2,0.00775936]
[1741974145433,1.3863,1933.3,1933.2,0.00775936]
[1741974145622,1.46924287,1933.3,1932.9,0.6784]
[1741974145826,3.2078,1933.2,1933.0,1.4486]
[1741974146129,3.584,1933.3,1933.0,1.4486]
[1741974146430,1.3252,1933.2,1933.0,1.4486]
[1741974148932,4.533,1933.2,1933.0,1.4486]
[1741974149233,0.6825,1933.1,1932.9,0.00775936]
[1741974149531,2.7284,1933.1,1932.9,1.32745936]
[1741974149735,6.7918,1933.0,1932.9,0.00775936]
[1741974150033,8.20642401,1933.0,1932.9,0.00775936]
[1741974151235,8.61694154,1933.0,1932.9,0.00775936]
[1741974151837,8.20642401,1933.0,1932.9,0.00775936]
[1741974152932,3.584,1933.0,1932.9,0.00775936]
[1741974153133,0.6825,1933.1,1932.9,0.00775936]
[1741974153334,6.7918,1933.2,1932.9,0.00775936]
[1741974153335,3.2078,1933.2,1932.9,0.00775936]
[1741974153843,1.3435,1933.3,1933.0,3.2078]
[1741974154032,3.2078,1933.4,1933.1,2.1045]
[1741974154240,1.3435,1933.3,1933.2,1.4375]
[1741974154540,1.3435,1933.3,1933.2,2.1256]
[1741974154739,3.2078,1933.4,1933.2,2.1256]
[1741974154938,4.5513,1933.4,1933.3,1.4375]
[1741974155735,5.2224,1933.4,1933.3,1.4375]
[1741974158247,5.30536938,1933.4,1933.0,0.6881]
[1741974158431,3.2078,1933.2,1933.1,1.3891]
[1741974158635,6.7918,1933.2,1933.1,1.3891]
[1741974159238,6.7918,1933.2,1932.9,0.00775936]
[1741974159449,2.1571,1933.1,1933.0,1.424]
[1741974160739,2.1571,1933.1,1932.9,0.00775936]
[1741974160945,5.3392,1933.0,1932.9,1.43175936]
[1741974162340,5.3392,1933.0,1932.9,0.00775936]
[1741974164149,3.2078,1933.0,1932.9,0.00775936]
[1741974164540,4.2921,1933.1,1932.9,0.00775936]
[1741974164844,1.3635,1933.0,1932.9,0.00775936]
[1741974165350,4.5713,1933.0,1932.9,0.00775936]
[1741974169450,1.3635,1933.0,1932.9,0.00775936]
[1741974169649,4.2921,1933.1,1932.9,0.00775936]
[1741974169948,5.6604,1933.1,1932.9,0.00775936]
[1741974170451,1.3683,1933.0,1932.9,0.00775936]
[1741974172857,3.2078,1933.2,1932.9,0.00775936]
[1741974173156,3.584,1933.4,1932.9,0.70845936]
[1741974173457,6.7918,1933.6,1933.0,4.638]
[1741974173657,1.4128,1933.5,1933.1,1.4372]
[1741974176054,3.2078,1933.4,1933.1,1.4372]
[1741974176253,1.4128,1933.3,1933.1,1.4372]
[1741974176454,2.0677,1933.3,1933.1,1.4372]
[1741974177161,0.6549,1933.3,1933.1,1.4372]
[1741974177352,3.2078,1933.4,1933.1,1.4372]
[1741974178255,4.6365,1933.5,1933.1,1.4372]
[1741974180060,1.4287,1933.5,1933.1,1.4372]
[1741974180562,5.6442,1933.6,1933.1,1.4372]
[1741974180952,1.4063,1933.5,1933.1,1.4372]
[1741974181150,0.686,1933.7,1933.4,3.2078]
[1741974181356,2.119,1933.9,1933.6,3.2078]
[1741974181658,1.41405936,1934.0,1933.7,1.4088]
[1741974181962,0.00775936,1934.0,1933.7,1.4088]
[1741974182461,1.41405936,1934.0,1933.7,1.4088]
[1741974182655,0.00775936,1934.0,1933.7,1.4088]
[1741974182853,0.00775936,1934.0,1933.7,4.9908]
[1741974183055,0.00775936,1934.0,1933.8,4.5403]
[1741974183257,0.00775936,1934.0,1933.9,2.0396]
[1741974183457,0.00775936,1934.0,1933.9,2.7321]
[1741974184459,0.00775936,1934.0,1933.9,2.0396]
[1741974185460,1.38295936,1934.0,1933.9,2.0396]
[1741974185662,1.38295936,1934.0,1933.6,5.998]
[1741974185968,0.6692,1933.9,1933.7,1.4521]
[1741974186167,1.3423,1933.8,1933.7,2.1677]
[1741974186859,1.3423,1933.8,1933.7,2.8864]
[1741974188158,3.21555936,1934.0,1933.7,2.8864]
[1741974188361,3.21555936,1934.0,1933.8,1.4521]
[1741974188553,0.00775936,1934.0,1933.8,1.4521]
[1741974188753,1.35005936,1934.0,1933.8,1.4521]
[1741974190762,3.2078,1933.9,1933.8,1.4521]
[1741974190966,6.7888,1933.9,1933.5,2.122]
[1741974191159,1.9811,1933.8,1933.6,1.4196]
[1741974191361,1.316,1933.7,1933.6,1.4196]
[1741974191566,1.316,1933.7,1933.1,3.2078]
[1741974191567,5.1893,1933.7,1933.1,3.2078]
[1741974191768,5.1893,1933.7,1933.2,1.4196]
[1741974191965,1.4306,1933.6,1933.2,1.4196]
[1741974193468,6.7878,1933.5,1933.2,1.4196]
[1741974193667,1.4306,1933.4,1933.2,1.4196]
[1741974194166,0.6601,1933.3,1933.2,1.4196]
[1741974194966,6.7878,1933.5,1933.2,1.4196]
[1741974195265,3.2078,1933.5,1933.2,1.4196]
[1741974196256,0.6601,1933.7,1933.2,1.4196]
[1741974196463,5.3165,1933.7,1933.2,10.9976]
[1741974196968,2.1087,1933.7,1933.3,4.5258]
[1741974197169,2.1087,1933.7,1933.4,1.318]
[1741974197471,2.1087,1933.7,1933.5,0.6682]
[1741974197772,2.1087,1933.7,1933.6,1.318]
[1741974198070,0.6601,1933.7,1933.6,1.318]
[1741974201066,3.8679,1933.7,1933.6,1.318]
[1741974201372,3.8679,1933.7,1933.2,6.7225]
[1741974201569,7.4479,1933.7,1933.4,1.3248]
[1741974202765,0.6601,1933.7,1933.4,1.3248]
[1741974204068,3.58,1933.9,1933.4,4.5326]
[1741974204465,3.58,1933.9,1933.5,1.3101]
[1741974204869,0.00775936,1934.0,1933.6,3.929]
[1741974205174,0.00775936,1934.0,1933.7,1.3101]
[1741974205374,0.00775936,1934.0,1933.8,0.7028]
[1741974205566,0.00775936,1934.0,1933.9,1.3101]
[1741974214978,0.00775936,1934.0,1933.9,1.9809]
[1741974218168,1.35105936,1934.0,1933.9,1.3101]
[1741974218370,2.06255936,1934.0,1933.9,1.3101]
[1741974218876,5.64055936,1934.0,1933.6,6.708]
[1741974219079,3.2078,1933.7,1933.6,5.998]
[1741974219982,6.7848,1933.7,1933.3,1.4425]
[1741974220280,3.2078,1933.5,1932.7,5.998]
[1741974220475,8.1727,1933.4,1933.1,1.433]
[1741974220783,2.0577,1933.3,1933.1,1.433]
[1741974220981,2.0751,1933.2,1933.1,1.433]
[1741974221184,5.2829,1933.2,1933.1,1.433]
[1741974221375,5.36590662,1933.2,1932.7,1.3956]
[1741974221571,3.2078,1933.0,1932.5,0.6711]
[1741974221777,3.2078,1933.0,1932.5,2.7655]
[1741974221977,2.0577,1932.9,1932.5,2.7655]
[1741974222288,3.2078,1932.8,1932.5,2.7655]
[1741974222484,1.4442,1932.7,1932.5,2.7655]
[1741974222677,0.00775936,1932.8,1932.6,1.4447]
[1741974222877,1.45195936,1932.8,1932.6,1.4447]
[1741974224983,0.00775936,1932.8,1932.6,1.4447]
[1741974226681,0.00775936,1932.8,1932.6,4.6525]
[1741974227083,0.00775936,1932.8,1932.7,1.4137]
[1741974230091,0.68375936,1932.8,1932.7,1.4137]
[1741974234195,0.00775936,1932.8,1932.7,1.4137]
[1741974237201,0.00775936,1932.8,1932.7,3.9137]
[1741974237508,3.2078,1933.2,1932.7,9.9117]
[1741974237802,3.2078,1933.2,1932.8,4.5765]
[1741974238105,3.2078,1933.2,1932.9,2.0367]
[1741974238301,2.0229,1933.4,1933.0,4.5765]
[1741974238302,1.3688,1933.4,1933.0,4.5765]
[1741974238605,0.00775936,1933.2,1933.1,1.3687]
[1741974239402,0.00775936,1933.2,1933.1,3.8687]
[1741974239605,1.3688,1933.8,1933.1,9.8667]
[1741974239797,3.2078,1933.9,1933.4,3.2078]
[1741974240102,3.2078,1934.2,1933.5,4.9457]
[1741974240302,1.45178374,1934.1,1933.6,4.5765]
[1741974240507,3.2078,1934.4,1933.8,3.2078]
[1741974240712,0.00775936,1934.0,1933.9,1.3585]
[1741974242605,0.00775936,1934.0,1933.9,2.0472]
[1741974244308,0.00775936,1934.0,1933.9,1.3585]
[1741974244502,3.21555936,1934.0,1933.5,5.998]
[1741974244706,2.1661,1933.9,1933.4,3.2078]
[1741974245001,2.8278,1933.9,1933.4,3.2078]
[1741974245812,2.8278,1933.9,1933.5,0.00775936]
[1741974247803,2.8278,1933.9,1933.5,1.40515936]
[1741974251713,3.575,1933.8,1933.5,1.40515936]
[1741974251916,1.3289,1933.7,1933.5,1.40515936]
[1741974257819,0.7219,1933.9,1933.6,3.2078]
[1741974258017,0.00775936,1934.0,1933.7,1.3473]
[1741974258209,1.34755936,1934.0,1933.7,1.3473]
[1741974258411,1.34755936,1934.0,1933.8,0.6677]
[1741974258910,1.34755936,1934.0,1933.8,2.015]
[1741974259217,1.34755936,1934.0,1933.6,3.2078]
[1741974259413,3.885,1933.9,1933.5,0.00775936]
[1741974259710,1.4068,1933.8,1933.5,1.35715936]
[1741974260914,0.6831,1933.7,1933.5,1.35715936]
[1741974261108,1.4068,1933.6,1933.5,1.35715936]
[1741974261318,1.4068,1933.6,1933.5,0.00775936]
[1741974262119,5.39452394,1933.6,1933.0,3.2078]
[1741974262309,3.29080558,1933.5,1932.8,3.2078]
[1741974262507,2.0662,1933.4,1932.8,3.2078]
[1741974262912,0.6831,1933.3,1932.8,3.2078]
[1741974263114,1.3945,1933.2,1932.8,3.2078]
[1741974263315,1.3945,1933.2,1932.9,0.00775936]
[1741974263515,3.2078,1933.0,1932.9,0.00775936]
[1741974263919,6.7818,1933.0,1932.9,0.00775936]
[1741974264112,6.7818,1933.0,1932.5,3.8705]
[1741974264317,2.7599,1932.9,1932.5,3.8705]
[1741974265220,2.7599,1932.9,1932.5,3.87825936]
[1741974265426,2.76765936,1932.9,1932.5,3.87825936]
[1741974266020,2.05575936,1932.9,1932.6,1.3928]
[1741974267723,2.05575936,1932.9,1932.5,3.87825936]
[1741974268123,2.73695936,1932.9,1932.5,5.27105936]
[1741974268628,2.73695936,1932.9,1932.5,4.60835936]
[1741974268826,3.2078,1932.8,1932.5,0.00775936]
[1741974269022,1.4338,1932.7,1932.5,0.00775936]
[1741974269227,6.7818,1932.6,1932.0,0.6763]
[1741974269425,1.4338,1932.5,1932.0,0.6763]
[1741974269723,2.0951,1932.5,1932.1,1.369]
[1741974270320,0.7032,1932.4,1932.1,1.369]
[1741974270528,1.4338,1932.3,1932.1,4.58197288]
[1741974270726,1.4338,1932.3,1932.2,1.369]
[1741974272123,3.574,1932.7,1932.2,1.369]
[1741974272325,1.3355,1932.7,1932.3,3.2078]
[1741974272524,1.3355,1932.7,1932.4,2.0969]
[1741974272825,1.3355,1932.7,1932.3,3.2078]
[1741974273025,1.3355,1932.7,1932.2,1.3874]
[1741974273227,1.3355,1932.7,1932.2,2.0969]
[1741974275933,1.3355,1932.7,1932.3,3.2078]
[1741974276230,1.3355,1932.7,1932.4,1.3363]
[1741974277819,1.3355,1932.7,1932.5,0.6602]
[1741974278023,1.3355,1932.7,1932.6,1.3388]
[1741974278531,1.3355,1932.7,1932.3,3.2078]
[1741974278831,1.3355,1932.7,1932.4,1.3388]
[1741974282231,1.3355,1932.7,1932.3,0.7002]
[1741974282535,3.574,1932.6,1932.2,0.7095]
[1741974282735,1.3811,1932.5,1932.3,1.4018]
[1741974285940,1.3811,1932.5,1932.2,0.7095]
[1741974286332,1.3811,1932.5,1932.3,1.3188]
[1741974287937,1.3811,1932.5,1932.3,1.9957]
[1741974288140,1.3811,1932.5,1932.4,1.4523]
[1741974288339,1.3704,1932.8,1932.4,1.4523]
[1741974288532,1.4388,1932.7,1932.4,1.4523]
[1741974291441,4.6466,1932.7,1932.4,1.4523]
[1741974291835,1.3781,1932.6,1932.4,1.4523]
[1741974293634,1.3781,1932.6,1932.2,0.7095]
[1741974293834,3.2078,1932.5,1932.2,0.7095]
[1741974294045,3.2078,1932.5,1932.2,2.0214]
[1741974294046,2.1444,1932.4,1932.2,2.0214]
[1741974294236,1.449,1932.3,1932.2,2.0214]
[1741974294438,1.449,1932.3,1932.2,0.7095]
[1741974298843,1.449,1932.3,1932.1,0.00517288]
[1741974299244,8.2298,1932.3,1931.9,3.9032]
[1741974299749,1.3938,1932.2,1931.9,3.9032]
[1741974300335,3.2078,1932.0,1931.9,0.6954]
[1741974300642,4.6016,1932.2,1931.9,0.6954]
[1741974301042,1.3938,1932.1,1931.9,0.6954]
[1741974301741,1.4422,1932.3,1932.0,0.6738]
[1741974302149,0.6786,1932.4,1932.0,9.8796]
[1741974302345,1.4422,1932.5,1932.0,9.8796]
[1741974302547,1.4422,1932.5,1932.2,3.2078]
[1741974302747,1.4422,1932.5,1932.3,0.6538]